bitfinex/quotes_BTCUSD_20220405
["timestamp","ask_amount","ask_price","bid_price","bid_amount"]
[1649196092478,0.04947436,45946.0,45942.0,0.04411781]
[1649196092574,0.04947436,45946.0,45945.0,0.05655616]
[1649196092775,0.04947436,45946.0,45945.0,0.05655555]
[1649196093375,0.04947436,45946.0,45945.0,0.05655309]
[1649196097258,0.03947436,45946.0,45945.0,0.05655309]
[1649196099552,0.03947436,45946.0,45945.0,0.11094509]
[1649196099652,0.03947436,45946.0,45945.0,0.41206709]
[1649196099802,0.03947436,45946.0,45945.0,0.51206709]
[1649196099902,0.03947436,45946.0,45945.0,0.58682592]
[1649196100001,0.03947436,45946.0,45945.0,0.68042592]
[1649196100502,0.03895704,45946.0,45945.0,0.68042592]
[1649196100902,0.03895704,45946.0,45945.0,0.65566709]
[1649196101908,0.03895704,45946.0,45945.0,0.98816287]
[1649196104717,0.03895704,45946.0,45945.0,0.66654709]
[1649196105619,0.03895704,45946.0,45945.0,0.31103309]
[1649196105719,0.03895704,45946.0,45945.0,0.25448]
[1649196105820,0.03895704,45946.0,45945.0,0.1436]
[1649196106313,0.03895704,45946.0,45945.0,0.0936]
[1649196106511,0.03895704,45946.0,45945.0,0.05]
[1649196106714,0.03895704,45946.0,45943.0,0.0002835]
[1649196107412,0.03895704,45946.0,45942.0,0.04884108]
[1649196107511,0.03895704,45946.0,45942.0,0.0480936]
[1649196107609,0.03895704,45946.0,45942.0,0.04860382]
[1649196108411,0.03895704,45946.0,45942.0,0.0493513]
[1649196108610,0.03895704,45946.0,45942.0,0.04884108]
[1649196108810,0.03895704,45946.0,45942.0,0.04936973]
[1649196109462,0.03895704,45946.0,45942.0,0.05011721]
[1649196109562,0.03895704,45946.0,45942.0,0.04936973]
[1649196109908,0.03895704,45946.0,45942.0,0.04884108]
[1649196110106,0.03895704,45946.0,45942.0,0.04936973]
[1649196110505,0.03895704,45946.0,45942.0,0.05011721]
[1649196110609,0.03895704,45946.0,45942.0,0.04936973]
[1649196111008,0.03895704,45946.0,45942.0,0.04884108]
[1649196111208,0.03895704,45946.0,45942.0,0.04936973]
[1649196111309,0.03895704,45946.0,45942.0,0.10376773]
[1649196111512,0.03895704,45946.0,45942.0,0.15451521]
[1649196111660,0.03895704,45946.0,45942.0,0.15376773]
[1649196112261,0.03895704,45946.0,45942.0,0.15323908]
[1649196112462,0.03895704,45946.0,45942.0,0.15374807]
[1649196112562,0.03895704,45946.0,45942.0,0.15449555]
[1649196112664,0.03895704,45946.0,45942.0,0.15374807]
[1649196113412,0.03895704,45946.0,45942.0,0.15323908]
[1649196113646,0.03895704,45946.0,45942.0,0.15374807]
[1649196114450,0.04006045,45946.0,45942.0,0.15374807]
[1649196114650,0.04006045,45946.0,45942.0,0.15323908]
[1649196114851,0.04006045,45946.0,45942.0,0.15374807]
[1649196115102,0.04006045,45946.0,45945.0,0.09570523]
[1649196115553,0.04116386,45946.0,45945.0,0.09570523]
[1649196115755,0.04116386,45946.0,45945.0,0.44682723]
[1649196115855,0.04116386,45946.0,45945.0,0.59042723]
[1649196116154,0.04116386,45946.0,45945.0,0.95828362]
[1649196116356,0.04116386,45946.0,45945.0,0.59042723]
[1649196116556,0.04226727,45946.0,45945.0,0.49042723]
[1649196116656,0.04226727,45946.0,45945.0,0.59042723]
[1649196116866,0.04226727,45946.0,45945.0,0.64481323]
[1649196117564,0.04337068,45946.0,45945.0,0.64481323]
[1649196118618,0.04447409,45946.0,45945.0,0.64481323]
[1649196119571,0.0455775,45946.0,45945.0,0.64481323]
[1649196120575,0.04549495,45946.0,45945.0,0.64481323]
[1649196120672,0.04659836,45946.0,45945.0,0.64481323]
[1649196121645,0.04770177,45946.0,45945.0,0.64481323]
[1649196122245,0.04770177,45946.0,45945.0,0.64556071]
[1649196122698,0.04880518,45946.0,45945.0,0.64556071]
[1649196123099,0.04880518,45946.0,45945.0,0.65644071]
[1649196123398,0.04880518,45946.0,45945.0,0.65718819]
[1649196123700,0.04990859,45946.0,45945.0,0.65718819]
[1649196124454,0.04990859,45946.0,45945.0,0.65793567]
[1649196124751,0.051012,45946.0,45945.0,0.65793567]
[1649196125432,0.051012,45946.0,45945.0,0.65868315]
[1649196125535,0.051012,45946.0,45945.0,0.60429715]
[1649196125782,0.05211541,45946.0,45945.0,0.60429715]
[1649196126481,0.05211541,45946.0,45945.0,0.60504463]
[1649196126783,0.05321882,45946.0,45945.0,0.60504463]
[1649196126884,0.05321882,45946.0,45945.0,0.30392263]
[1649196127081,0.05321882,45946.0,45945.0,0.19304263]
[1649196127182,0.05321882,45946.0,45945.0,0.29304263]
[1649196127482,0.05321882,45946.0,45945.0,0.29379011]
[1649196127783,0.05432223,45946.0,45945.0,0.29379011]
[1649196128232,0.05432223,45946.0,45945.0,0.19379011]
[1649196128383,0.05432223,45946.0,45945.0,0.15019011]
[1649196128611,0.05432223,45946.0,45945.0,0.15093759]
[1649196128804,0.05542564,45946.0,45945.0,0.15093759]
[1649196129305,0.05432223,45946.0,45945.0,0.15093759]
[1649196129509,0.37647823,45946.0,45945.0,0.15093759]
[1649196129610,0.37647823,45946.0,45945.0,0.15168507]
[1649196130460,0.05432223,45946.0,45945.0,0.15168507]
[1649196130566,0.37647823,45946.0,45945.0,0.15168507]
[1649196130664,0.05432223,45946.0,45945.0,0.15243255]
[1649196130863,0.37647823,45946.0,45945.0,0.15243255]
[1649196131063,0.05432223,45946.0,45945.0,0.15243255]
[1649196131265,0.05542564,45946.0,45945.0,0.15243255]
[1649196131363,0.05432223,45946.0,45945.0,0.15243255]
[1649196131465,0.37647823,45946.0,45945.0,0.15243255]
[1649196131566,0.05432223,45946.0,45945.0,0.15243255]
[1649196131664,0.05432223,45946.0,45945.0,0.15318003]
[1649196132713,0.05432223,45946.0,45945.0,0.15392751]
[1649196133764,0.05432223,45946.0,45945.0,0.15467499]
[1649196134820,0.05432223,45946.0,45945.0,0.15542247]
[1649196135820,0.05432223,45946.0,45945.0,0.15616995]
[1649196136903,0.05432223,45946.0,45945.0,0.15691743]
[1649196137207,0.05432223,45946.0,45945.0,0.15616995]
[1649196138860,0.05432223,45946.0,45942.0,0.01963971]
[1649196138861,0.3123399,45944.0,45943.0,0.00051164]
[1649196138960,0.3123399,45944.0,45943.0,0.00088149]
[1649196139865,0.3123399,45944.0,45943.0,0.00036985]
[1649196143514,0.3123399,45944.0,45942.0,0.01963971]
[1649196144012,0.31223188,45944.0,45942.0,0.01963971]
[1649196144766,0.31333529,45944.0,45942.0,0.01963971]
[1649196145468,0.322156,45943.0,45942.0,0.01963971]
[1649196145672,0.63102972,45943.0,45942.0,0.01963971]
[1649196145772,0.64190972,45943.0,45942.0,0.01963971]
[1649196146122,0.64190972,45943.0,45942.0,0.0185363]
[1649196146418,0.91926765,45943.0,45942.0,0.0185363]
[1649196146568,0.96926765,45943.0,45942.0,0.0185363]
[1649196147655,0.96926765,45943.0,45942.0,3.63e-05]
[1649196147753,0.96926765,45943.0,45920.0,0.3]
[1649196147754,0.054433,45940.0,45920.0,0.3]
[1649196147854,0.333036,45939.0,45920.0,0.3]
[1649196147953,0.333036,45939.0,45919.0,0.21123]
[1649196148503,0.333036,45939.0,45927.0,0.00047861]
[1649196148804,0.28269459,45937.0,45927.0,0.00047861]
[1649196148904,0.333036,45939.0,45927.0,0.00047861]
[1649196148905,0.333036,45936.0,45927.0,0.00047861]
[1649196149508,0.333036,45936.0,45920.0,0.05]
[1649196149606,0.333036,45936.0,45920.0,0.42350552]
[1649196149607,0.01088,45936.0,45920.0,0.42350552]
[1649196149709,0.01088,45937.0,45929.0,0.00047859]
[1649196149805,0.322156,45936.0,45929.0,0.00047859]
[1649196149907,0.01088,45935.0,45929.0,0.00047859]
[1649196150011,0.322156,45934.0,45929.0,0.00047859]
[1649196150711,0.30109998,45937.0,45921.0,0.48438743]
[1649196150807,0.30109998,45937.0,45921.0,0.53438743]
[1649196150808,0.322156,45936.0,45921.0,0.53438743]
[1649196150912,0.322156,45936.0,45929.0,0.00047859]
[1649196151009,0.322156,45934.0,45929.0,0.00047859]
[1649196151931,0.322156,45934.0,45921.0,0.53438743]
[1649196152029,0.01088,45937.0,45921.0,0.53438743]
[1649196152130,0.01088,45937.0,45929.0,0.00047791]
[1649196152231,0.322156,45936.0,45929.0,0.00047791]
[1649196152330,0.01088,45935.0,45929.0,0.00047791]
[1649196152432,0.322156,45934.0,45929.0,0.00047791]
[1649196153135,0.322156,45934.0,45921.0,0.45]
[1649196153282,0.01088,45937.0,45929.0,0.00047791]
[1649196153384,0.322156,45936.0,45929.0,0.00047791]
[1649196153483,0.01088,45935.0,45929.0,0.00047791]
[1649196153584,0.322156,45934.0,45929.0,0.00047791]
[1649196153886,0.01088,45937.0,45929.0,0.00047791]
[1649196154088,0.322156,45936.0,45929.0,0.00047791]
[1649196154189,0.01088,45935.0,45929.0,0.00047791]
[1649196154286,0.01088,45937.0,45921.0,0.76033662]
[1649196154487,0.01088,45937.0,45931.0,0.0004779]
[1649196154590,0.322156,45936.0,45931.0,0.0004779]
[1649196154736,0.01088,45935.0,45931.0,0.0004779]
[1649196154867,0.322156,45934.0,45931.0,0.0004779]
[1649196155413,0.01088,45937.0,45931.0,0.0004779]
[1649196155511,0.01088,45937.0,45928.0,0.054416]
[1649196155512,0.322156,45936.0,45928.0,0.054416]
[1649196155711,0.01088,45937.0,45930.0,0.00047797]
[1649196155817,0.322156,45936.0,45930.0,0.00047797]
[1649196156664,0.322156,45936.0,45928.0,0.054416]
[1649196156766,0.01088,45937.0,45928.0,0.054416]
[1649196156867,0.01088,45938.0,45931.0,0.00047797]
[1649196156966,0.322156,45936.0,45931.0,0.00047797]
[1649196157068,0.322156,45935.0,45931.0,0.00047797]
[1649196157218,0.01088,45938.0,45931.0,0.00047797]
[1649196157316,0.322156,45937.0,45931.0,0.00047797]
[1649196157416,0.01088,45936.0,45931.0,0.00047797]
[1649196157666,0.322156,45935.0,45931.0,0.00047797]
[1649196157766,0.01088,45938.0,45931.0,0.00047797]
[1649196157869,0.322156,45937.0,45929.0,0.35441]
[1649196157968,0.01088,45936.0,45930.0,0.108816]
[1649196158067,0.01088,45938.0,45931.0,0.00047797]
[1649196158219,0.322156,45937.0,45931.0,0.00047797]
[1649196158318,0.01088,45936.0,45931.0,0.00047797]
[1649196158418,0.01088,45938.0,45931.0,0.00047797]
[1649196158519,0.322156,45937.0,45931.0,0.00047797]
[1649196158649,0.01036268,45936.0,45931.0,0.00047797]
[1649196158748,0.01088,45938.0,45931.0,0.00047797]
[1649196159052,0.322156,45937.0,45930.0,0.108816]
[1649196159151,0.01088,45938.0,45930.0,0.108816]
[1649196159251,0.01088,45936.0,45932.0,0.00047554]
[1649196159451,0.01088,45938.0,45932.0,0.00047554]
[1649196159552,0.322156,45937.0,45932.0,0.00047554]
[1649196159653,0.322156,45935.0,45932.0,0.00047554]
[1649196159752,0.01088,45938.0,45932.0,0.00047554]
[1649196159851,0.322156,45937.0,45932.0,0.00047554]
[1649196159953,0.01088,45936.0,45932.0,0.00047554]
[1649196160052,0.322156,45937.0,45932.0,0.00047554]
[1649196160155,0.01088,45936.0,45932.0,0.00047554]
[1649196160254,0.01088,45938.0,45930.0,0.108816]
[1649196160355,0.05,45935.0,45930.0,0.108816]
[1649196160456,0.322156,45937.0,45932.0,0.00047554]
[1649196160555,0.322156,45935.0,45932.0,0.00047554]
[1649196160655,0.322156,45937.0,45932.0,0.00047554]
[1649196160805,0.01088,45936.0,45932.0,0.00047554]
[1649196160909,0.322156,45935.0,45932.0,0.00047554]
[1649196161108,0.01088,45936.0,45932.0,0.00047554]
[1649196161307,0.322156,45937.0,45932.0,0.00047554]
[1649196161409,0.01088,45936.0,45932.0,0.00047554]
[1649196161506,0.01088,45936.0,45930.0,0.108816]
[1649196161706,0.05,45939.0,45932.0,0.00047554]
[1649196161814,0.01088,45943.0,45932.0,0.00047554]
[1649196162010,0.322156,45942.0,45932.0,0.00047554]
[1649196162114,0.01088,45941.0,45932.0,0.00047554]
[1649196162363,0.322156,45942.0,45932.0,0.00047554]
[1649196162460,0.01088,45941.0,45932.0,0.00047554]
[1649196162555,0.01088,45943.0,45932.0,0.00047554]
[1649196162661,0.01088,45943.0,45930.0,0.108816]
[1649196162806,0.322156,45942.0,45933.0,0.054405]
[1649196162907,0.322156,45940.0,45934.0,0.00047831]
[1649196163007,0.01088,45939.0,45934.0,0.00047831]
[1649196163106,0.322156,45940.0,45934.0,0.00047831]
[1649196163208,0.01088,45939.0,45934.0,0.00047831]
[1649196163306,0.322156,45942.0,45934.0,0.00047831]
[1649196163406,0.01088,45941.0,45934.0,0.00047831]
[1649196163608,0.01088,45943.0,45934.0,0.00047831]
[1649196163711,0.322156,45942.0,45934.0,0.00047831]
[1649196163809,0.01088,45941.0,45934.0,0.00047831]
[1649196163910,0.01088,45941.0,45933.0,0.108808]
[1649196164010,0.01088,45943.0,45933.0,0.108808]
[1649196164112,0.322156,45942.0,45936.0,0.00047829]
[1649196164209,0.322156,45940.0,45936.0,0.00047829]
[1649196164312,0.322156,45938.0,45936.0,0.00047829]
[1649196164459,0.322156,45942.0,45936.0,0.00047829]
[1649196164608,0.322156,45940.0,45936.0,0.00047829]
[1649196164712,0.322156,45938.0,45936.0,0.00047829]
[1649196164811,0.322156,45942.0,45936.0,0.00047829]
[1649196164910,0.322156,45940.0,45936.0,0.00047829]
[1649196165011,0.01088,45939.0,45936.0,0.00047829]
[1649196165112,0.01088,45939.0,45933.0,0.108808]
[1649196165214,0.01088,45943.0,45933.0,0.108808]
[1649196165311,0.01088,45943.0,45937.0,0.00047829]
[1649196165413,0.322156,45942.0,45937.0,0.00047829]
[1649196165512,0.01088,45941.0,45937.0,0.00047829]
[1649196166160,0.31333529,45944.0,45937.0,0.00047829]
[1649196166260,0.31333529,45944.0,45935.0,0.108797]
[1649196166363,0.31333529,45944.0,45939.0,0.054397]
[1649196166460,0.31333529,45944.0,45939.0,0.354397]
[1649196167012,0.31333529,45944.0,45940.0,0.0436]
[1649196167108,0.31333529,45944.0,45940.0,0.04249659]
[1649196167658,0.31333529,45944.0,45940.0,0.04297458]
[1649196168661,0.31333529,45944.0,45940.0,0.04249659]
[1649196168861,0.31333529,45944.0,45940.0,0.04297458]
[1649196169912,0.31333529,45944.0,45940.0,0.04249659]
[1649196170409,0.322156,45943.0,45940.0,0.04249659]
[1649196171361,0.31333529,45944.0,45940.0,0.04249659]
[1649196171761,0.322156,45943.0,45940.0,0.04249659]
[1649196171962,0.31333529,45944.0,45940.0,0.04249659]
[1649196172161,0.322156,45943.0,45940.0,0.04249659]
[1649196172265,0.31333529,45944.0,45940.0,0.04249659]
[1649196172465,0.322156,45943.0,45940.0,0.04249659]
[1649196172868,0.31333529,45944.0,45940.0,0.04249659]
[1649196172966,0.322156,45943.0,45940.0,0.04249659]
[1649196173268,0.31333529,45944.0,45940.0,0.04249659]
[1649196173466,0.322156,45943.0,45940.0,0.04249659]
[1649196173699,0.31333529,45944.0,45940.0,0.04302933]
[1649196174549,0.31333529,45944.0,45940.0,0.00053274]
[1649196174701,0.31333529,45944.0,45934.0,0.3]
[1649196174799,0.31333529,45944.0,45933.0,0.1436]
[1649196174899,0.31333529,45944.0,45940.0,0.00053274]
[1649196175902,0.31333529,45944.0,45934.0,0.4]
[1649196176007,0.31333529,45944.0,45934.0,0.45]
[1649196176106,0.31333529,45944.0,45940.0,0.00053274]
[1649196177162,0.31333529,45944.0,45933.0,0.0436]
[1649196177410,0.31333529,45944.0,45940.0,0.00050996]
[1649196178310,0.31333529,45944.0,45934.0,0.1]
[1649196178410,0.31333529,45944.0,45934.0,0.15]
[1649196178509,0.31333529,45944.0,45940.0,0.00048839]
[1649196178812,0.322156,45943.0,45940.0,0.00048839]
[1649196179211,0.31333529,45944.0,45940.0,0.00048839]
[1649196179313,0.322156,45943.0,45940.0,0.00048839]
[1649196179411,0.31333529,45944.0,45940.0,0.00048839]
[1649196179516,0.31333529,45944.0,45934.0,0.3]
[1649196179613,0.31333529,45944.0,45934.0,0.35]
[1649196179715,0.31333529,45944.0,45939.0,0.00048839]
[1649196180714,0.31333529,45944.0,45934.0,0.15]
[1649196180813,0.31333529,45944.0,45934.0,0.05]
[1649196180917,0.31333529,45944.0,45939.0,0.00049065]
[1649196181561,0.322156,45943.0,45939.0,0.00049065]
[1649196181812,0.31333529,45944.0,45939.0,0.00049065]
[1649196181913,0.31333529,45944.0,45935.0,6.024e-05]
[1649196182161,0.31333529,45944.0,45939.0,0.0004749]
[1649196183113,0.31333529,45944.0,45935.0,0.00012047]
[1649196183315,0.322156,45943.0,45939.0,0.00047489]
[1649196184317,0.322156,45943.0,45935.0,0.0001807]
[1649196184421,0.31333529,45944.0,45935.0,0.0001807]
[1649196184518,0.322156,45943.0,45939.0,0.00047527]
[1649196185517,0.322156,45943.0,45935.0,0.00024093]
[1649196185615,0.31333529,45944.0,45935.0,0.00024093]
[1649196185715,0.31333529,45944.0,45939.0,0.00047626]
[1649196185817,0.322156,45943.0,45939.0,0.00047626]
[1649196186716,0.31333529,45944.0,45935.0,0.00030116]
[1649196186916,0.322156,45943.0,45939.0,0.00047626]
[1649196187920,0.322156,45943.0,45935.0,0.00036139]
[1649196188022,0.31333529,45944.0,45935.0,0.00036139]
[1649196188120,0.322156,45943.0,45931.0,0.39979441]
[1649196188220,0.30579016,45942.0,45931.0,0.39979441]
[1649196188320,0.05,45942.0,45931.0,0.39979441]
[1649196189060,0.05,45942.0,45931.0,0.44979441]
[1649196189207,0.322156,45941.0,45935.0,6.023e-05]
[1649196189707,0.04973883,45942.0,45935.0,6.023e-05]
[1649196191166,0.04973883,45942.0,45935.0,0.00012045]
[1649196191267,0.04973883,45942.0,45935.0,6.022e-05]
[1649196192220,0.322156,45941.0,45935.0,6.022e-05]
[1649196193071,0.322156,45941.0,45936.0,0.00054591]
[1649196193173,0.322156,45941.0,45929.0,0.4]
[1649196193174,0.0010316,45935.0,45929.0,0.4]
[1649196193269,0.03408372,45935.0,45929.0,0.1]
[1649196193374,0.03408372,45935.0,45929.0,0.15]
[1649196193970,0.03408372,45935.0,45929.0,0.05]
[1649196194071,0.03408372,45935.0,45927.0,0.3951]
[1649196194170,0.03408372,45935.0,45927.0,0.1]
[1649196194274,0.03408372,45935.0,45925.0,0.4001]
[1649196196455,0.03408372,45935.0,45922.0,0.31089]
[1649196196456,1.23987596,45933.0,45922.0,0.3]
[1649196196558,0.322156,45932.0,45919.0,0.7363]
[1649196196657,0.322156,45931.0,45919.0,0.7363]
[1649196196805,0.322156,45931.0,45917.0,0.1998]
[1649196197009,0.26627898,45932.0,45918.0,0.08754496]
[1649196197105,2.53031875,45929.0,45918.0,0.08754496]
[1649196197206,0.322156,45928.0,45918.0,0.08754496]
[1649196197407,0.30500692,45924.0,45916.0,0.0838]
[1649196197512,0.30500692,45924.0,45912.0,0.30609]
[1649196197605,0.30500692,45924.0,45911.0,0.109]
[1649196197807,0.26146489,45925.0,45911.0,0.109]
[1649196197908,0.322156,45924.0,45918.0,0.00054604]
[1649196198108,0.322156,45922.0,45918.0,0.00054604]
[1649196198859,0.322156,45921.0,45911.0,0.109]
[1649196199009,0.03305867,45923.0,45911.0,0.109]
[1649196199111,0.03305867,45923.0,45918.0,0.00054604]
[1649196199212,0.322156,45922.0,45918.0,0.00054604]
[1649196199410,0.03305867,45923.0,45918.0,0.00054604]
[1649196200113,0.03305867,45923.0,45913.0,0.30016]
[1649196200313,0.03305867,45923.0,45918.0,0.00054603]
[1649196200411,0.322156,45922.0,45918.0,0.00054603]
[1649196200611,0.03305867,45923.0,45918.0,0.00054603]
[1649196201314,0.03305867,45923.0,45913.0,0.45]
[1649196201413,0.03305867,45923.0,45913.0,0.15]
[1649196201513,0.03305867,45923.0,45918.0,0.00054603]
[1649196202115,0.322156,45922.0,45918.0,0.00054603]
[1649196202465,0.03305867,45923.0,45913.0,0.1]
[1649196202565,0.03305867,45923.0,45913.0,0.15]
[1649196202666,0.03305867,45923.0,45918.0,0.00052584]
[1649196202767,0.322156,45922.0,45918.0,0.00052584]
[1649196202869,0.03305867,45923.0,45918.0,0.00052584]
[1649196203661,0.03305867,45923.0,45913.0,0.4]
[1649196203763,0.26612498,45928.0,45913.0,0.45]
[1649196203865,0.322156,45927.0,45918.0,0.00052583]
[1649196203966,0.322156,45925.0,45918.0,0.00052583]
[1649196204064,0.322156,45930.0,45918.0,0.00052583]
[1649196204164,0.322156,45928.0,45918.0,0.00052583]
[1649196204265,0.00303366,45932.0,45918.0,0.00052583]
[1649196204266,0.01089,45927.0,45918.0,0.00052583]
[1649196204467,0.00303366,45932.0,45918.0,0.30052583]
[1649196204585,0.00303366,45932.0,45918.0,0.34412583]
[1649196204718,0.00303366,45932.0,45919.0,0.02477257]
[1649196204818,0.00303366,45932.0,45922.0,0.33155536]
[1649196204917,0.00303366,45932.0,45923.0,0.3]
[1649196205016,0.00303366,45932.0,45924.0,0.054407]
[1649196205118,0.00303366,45932.0,45924.0,0.08161073]
[1649196205267,0.00303366,45932.0,45925.0,0.0436]
[1649196205366,0.00303366,45932.0,45926.0,0.3]
[1649196205567,0.00303366,45932.0,45927.0,0.0436]
[1649196206269,0.00303366,45932.0,45927.0,0.04414558]
[1649196206468,0.00303366,45932.0,45927.0,0.09855058]
[1649196207371,0.00303366,45932.0,45927.0,0.098005]
[1649196207470,0.00303366,45932.0,45927.0,0.09855058]
[1649196208474,0.00303366,45932.0,45927.0,0.098005]
[1649196208676,0.00303366,45932.0,45927.0,0.09855058]
[1649196209229,0.00303366,45932.0,45927.0,0.09744717]
[1649196209628,0.00303366,45932.0,45927.0,0.09690159]
[1649196209880,0.00303366,45932.0,45927.0,0.09743938]
[1649196210829,0.00303366,45932.0,45927.0,0.09690159]
[1649196211106,0.00303366,45932.0,45927.0,0.09743938]
[1649196212067,0.00303366,45932.0,45927.0,0.09690159]
[1649196212269,0.00303366,45932.0,45927.0,0.09743938]
[1649196212567,0.00303366,45932.0,45927.0,0.04303438]
[1649196213318,0.00303366,45932.0,45927.0,0.04249659]
[1649196213521,0.00303366,45932.0,45927.0,0.04304256]
[1649196214118,0.00202244,45932.0,45927.0,0.04304256]
[1649196214520,0.00202244,45932.0,45927.0,0.04249659]
[1649196214720,0.00202244,45932.0,45927.0,0.04304256]
[1649196215160,0.00303366,45932.0,45927.0,0.04304256]
[1649196215712,0.00303366,45932.0,45927.0,0.04249659]
[1649196215861,0.00303366,45932.0,45927.0,0.04304256]
[1649196216867,0.00303366,45932.0,45927.0,0.04249659]
[1649196217066,0.00303366,45932.0,45927.0,0.04302149]
[1649196217168,0.00404488,45932.0,45927.0,0.04302149]
[1649196218068,0.00404488,45932.0,45927.0,0.04249659]
[1649196218169,0.0050561,45932.0,45927.0,0.04249659]
[1649196218367,0.0050561,45932.0,45927.0,0.04302149]
[1649196219206,0.00606732,45932.0,45927.0,0.04302149]
[1649196219305,0.00606732,45932.0,45927.0,0.04249659]
[1649196219458,0.00606732,45932.0,45927.0,0.04302149]
[1649196220259,0.00707854,45932.0,45927.0,0.04302149]
[1649196220461,0.00707854,45932.0,45927.0,0.04249659]
[1649196220710,0.00707854,45932.0,45927.0,0.04300401]
[1649196221315,0.00808976,45932.0,45927.0,0.04300401]
[1649196221714,0.00808976,45932.0,45927.0,0.04249659]
[1649196221917,0.00808976,45932.0,45927.0,0.04300401]
[1649196222268,0.00910098,45932.0,45927.0,0.04300401]
[1649196222856,0.00910098,45932.0,45927.0,0.04249659]
[1649196223105,0.00910098,45932.0,45927.0,0.04300401]
[1649196223307,0.0101122,45932.0,45927.0,0.04300401]
[1649196223609,0.0101122,45932.0,45928.0,0.3]
[1649196223859,0.0101122,45932.0,45927.0,0.19300401]
[1649196224059,0.0101122,45932.0,45927.0,0.19249659]
[1649196224260,0.0101122,45932.0,45927.0,0.19300401]
[1649196224361,0.01112342,45932.0,45927.0,0.19300401]
[1649196224861,0.01112342,45932.0,45927.0,0.09300401]
[1649196224960,0.01112342,45932.0,45927.0,0.04300401]
[1649196225262,0.01112342,45932.0,45927.0,0.04249659]
[1649196225360,0.01213464,45932.0,45927.0,0.04249659]
[1649196225463,0.01213464,45932.0,45927.0,0.04300651]
[1649196226364,0.01314586,45932.0,45927.0,0.04300651]
[1649196226465,0.01314586,45932.0,45927.0,0.04249659]
[1649196226664,0.01314586,45932.0,45927.0,0.04300651]
[1649196227666,0.01314586,45932.0,45927.0,0.04249659]
[1649196227866,0.01314586,45932.0,45927.0,0.04300651]
[1649196228417,0.01415708,45932.0,45927.0,0.04300651]
[1649196228872,0.01415708,45932.0,45927.0,0.04249659]
[1649196229069,0.01415708,45932.0,45927.0,0.04300623]
[1649196229519,0.0151683,45932.0,45927.0,0.04300623]
[1649196229878,0.01415708,45932.0,45927.0,0.04300623]
[1649196230078,0.01415708,45932.0,45927.0,0.04249659]
[1649196230282,0.01415708,45932.0,45927.0,0.04190282]
[1649196230881,0.0151683,45932.0,45927.0,0.04190282]
[1649196230979,0.01415708,45932.0,45927.0,0.04190282]
[1649196231283,0.01415708,45932.0,45927.0,0.04139318]
[1649196231481,0.01415708,45932.0,45928.0,0.3]
[1649196231581,0.01415708,45932.0,45928.0,0.35]
[1649196231681,0.01415708,45932.0,45928.0,0.45]
[1649196232636,0.01415708,45932.0,45928.0,0.15]
[1649196232735,0.01415708,45932.0,45928.0,0.15050967]
[1649196232833,0.01415708,45932.0,45928.0,0.05050967]
[1649196232933,0.01415708,45932.0,45928.0,0.00050967]
[1649196233135,0.01415708,45932.0,45928.0,0.30050967]
[1649196233334,0.01415708,45932.0,45928.0,0.40050967]
[1649196233660,0.01415708,45932.0,45928.0,0.4]
[1649196233864,0.01415708,45932.0,45928.0,0.40050967]
[1649196234914,0.01415708,45932.0,45928.0,0.4]
[1649196235111,0.01415708,45932.0,45928.0,0.40050967]
[1649196236013,0.0151683,45932.0,45928.0,0.40050967]
[1649196236112,0.01415708,45932.0,45928.0,0.4]
[1649196236313,0.01415708,45932.0,45928.0,0.40052687]
[1649196237220,0.01415708,45932.0,45928.0,0.10052687]
[1649196237364,0.01415708,45932.0,45927.0,0.09139318]
[1649196237365,0.01415708,45932.0,45927.0,0.05]
[1649196237467,0.01415708,45932.0,45928.0,0.00052687]
[1649196238065,0.0151683,45932.0,45928.0,0.00052687]
[1649196238166,0.01415708,45932.0,45928.0,0.00052687]
[1649196238466,0.01415708,45932.0,45925.0,0.5]
[1649196238665,0.01415708,45932.0,45928.0,0.00052687]
[1649196239718,0.01415708,45932.0,45925.0,0.5]
[1649196239918,0.01415708,45932.0,45928.0,0.00050864]
[1649196240922,0.01415708,45932.0,45925.0,0.5]
[1649196241158,0.0151683,45932.0,45928.0,0.00050864]
[1649196241259,0.01415708,45932.0,45928.0,0.00050864]
[1649196242111,0.01415708,45932.0,45925.0,0.5]
[1649196242211,0.01415708,45932.0,45925.0,0.2]
[1649196242313,0.01415708,45932.0,45928.0,0.00050864]
[1649196243214,0.0151683,45932.0,45928.0,0.00050864]
[1649196243312,0.01415708,45932.0,45925.0,0.4]
[1649196244413,0.01415708,45932.0,45925.0,0.1]
[1649196244514,0.01415708,45932.0,45924.0,0.0936]
[1649196244614,0.01415708,45932.0,45924.0,0.1436]
[1649196245065,0.01415708,45932.0,45925.0,0.3]
[1649196245268,0.0151683,45932.0,45925.0,0.3]
[1649196245366,0.0151683,45932.0,45924.0,0.2436]
[1649196245466,0.01415708,45932.0,45925.0,0.3]
[1649196245666,0.01314586,45932.0,45925.0,0.3]
[1649196246069,0.01262854,45932.0,45925.0,0.3]
[1649196246470,0.01213464,45932.0,45925.0,0.3]
[1649196246672,0.01213464,45932.0,45925.0,0.29898878]
[1649196247074,0.01213464,45932.0,45926.0,0.00054555]
[1649196247474,0.01112342,45932.0,45926.0,0.00054555]
[1649196248078,0.01112342,45932.0,45925.0,0.29898878]
[1649196248226,0.01112342,45932.0,45925.0,0.3]
[1649196248327,0.01112342,45932.0,45927.0,0.00054555]
[1649196248529,0.0101122,45932.0,45927.0,0.00054555]
[1649196249261,0.0101122,45932.0,45925.0,0.1]
[1649196249462,0.00910098,45932.0,45925.0,0.1]
[1649196249561,0.00910098,45932.0,45927.0,0.00054555]
[1649196250514,0.00808976,45932.0,45925.0,0.1]
[1649196250718,0.00808976,45932.0,45927.0,0.00054555]
[1649196251218,0.00808976,45932.0,45924.0,0.14304214]
[1649196251517,0.00707854,45932.0,45924.0,0.14304214]
[1649196252074,0.00707854,45932.0,45925.0,0.3]
[1649196252220,1.17352803,45936.0,45925.0,0.3]
[1649196252469,1.17352803,45936.0,45924.0,0.19304214]
[1649196252671,0.322156,45935.0,45925.0,0.32008046]
[1649196252771,1.17352803,45936.0,45925.0,0.32008046]
[1649196252873,1.17352803,45936.0,45925.0,0.42008046]
[1649196253073,1.17352803,45936.0,45925.0,0.72008046]
[1649196253173,1.17352803,45936.0,45925.0,0.47008046]
[1649196253624,1.17352803,45936.0,45925.0,0.15]
[1649196253826,1.17352803,45936.0,45925.0,0.45]
[1649196253927,1.17352803,45936.0,45924.0,0.09304214]
[1649196254027,0.36608502,45935.0,45924.0,0.09304214]
[1649196254130,0.62214295,45935.0,45924.0,0.09304214]